Workbook

Sheet Retornos_Mensais
C1: Preço | D1: Retornos mensais (%) - Tempo Contínuio | F1: Retornos mensais (%) acumulados - Tempo Contínuio
B2: BOVESPA | C2: Petrobras | D2: IBOVESPA | E2: =C2 -> Petrobras | F2: IBOVESPA | G2: =E2 -> Petrobras | H2: Distribuição Normal (retornos) | M2: Média | N2: Desvio padrão | O2: Prob (-1%<=x<=+1%) | P2: Prob (x>=0%) | Q2: ="VaR"&M6*100&"% - Normal" -> VaR5% - Normal | R2: ="VaR"&M6*100&"% - Lista" -> VaR5% - Lista | S2: Coef_Variacao | T2: Curtose
A3: Periodo | B3: ^BVSP | C3: PETR3.SA | D3: ^BVSP | E3: =C3 -> PETR3.SA | F3: ^BVSP | G3: =E3 -> PETR3.SA | H3: =D3 -> ^BVSP | I3: =E3 -> PETR3.SA | L3: =D3 -> ^BVSP | M3: =AVERAGE(dvec_bovespa) -> 0.00335797727 | N3: =_xlfn.STDEV.S(dvec_bovespa) -> 0.06539710771 | O3: =_xlfn.NORM.DIST(1%,M3,N3,TRUE)-_xlfn.NORM.DIST(-1%,M3,N3,TRUE) -> 0.1213734317 | P3: =1-_xlfn.NORM.DIST(0%,M3,N3,TRUE) -> 0.5204756864 | Q3: =_xlfn.NORM.INV(M6,M3,N3) -> -0.1042106925 | R3: =_xlfn.PERCENTILE.INC(dvec_bovespa,M6) -> -0.1040492366 | S3: =N3/M3 -> 19.47514901 | T3: =KURT(dvec_bovespa) -> 1.994857132
A4: 2006-02-01 | B4: 38383 | C4: 46.6 | D4: 0 | E4: 0 | F4: 0 | G4: 0 | H4: =_xlfn.NORM.DIST(D4,AVERAGE(dvec_bovespa),_xlfn.STDEV.S(dvec_bovespa),$M$7) -> 6.092268027 | I4: =_xlfn.NORM.DIST(E4,AVERAGE(dvec_acao),_xlfn.STDEV.S(dvec_acao),$M$7) -> 2.68745821 | L4: =E3 -> PETR3.SA | M4: =AVERAGE(dvec_acao) -> -0.002822530899 | N4: =_xlfn.STDEV.S(dvec_acao) -> 0.1484191066 | O4: =_xlfn.NORM.DIST(1%,M4,N4,TRUE)-_xlfn.NORM.DIST(-1%,M4,N4,TRUE) -> 0.05370853968 | P4: =1-_xlfn.NORM.DIST(0%,M4,N4,TRUE) -> 0.4924136517 | Q4: =_xlfn.NORM.INV(M6,M4,N4) -> -0.2469502368 | R4: =_xlfn.PERCENTILE.INC(dvec_acao,M6) -> -0.235761784 | S4: =N4/M4 -> -52.58369597 | T4: =KURT(dvec_acao) -> 5.781189634
A5: 2006-03-01 | B5: 37952 | C5: 51.01 | D5: =IF(ISERR(LN(B5)-LN(B4)),D4,LN(B5)-LN(B4)) -> -0.01129244986 | E5: =IF(ISERR(LN(C5)-LN(C4)),E4,LN(C5)-LN(C4)) -> 0.0904211508 | F5: =D5+F4 -> -0.01129244986 | G5: =E5+G4 -> 0.0904211508 | H5: 5.949133986 | I5: 2.206550142
A6: 2006-04-01 | B6: 40363 | C6: 49.43 | D6: =IF(ISERR(LN(B6)-LN(B5)),D5,LN(B6)-LN(B5)) -> 0.06159132037 | E6: =IF(ISERR(LN(C6)-LN(C5)),E5,LN(C6)-LN(C5)) -> -0.03146416462 | F6: =D6+F5 -> 0.05029887051 | G6: =E6+G5 -> 0.05895698619 | H6: 4.103669033 | I6: 2.638357075 | L6: VaR | M6: 0.05 | N6: ="--> Nivel de significância de "&(1-M6)*100&"%" -> --> Nivel de significância de 95%
A7: 2006-05-01 | B7: 36530 | C7: 48.4 | D7: -0.09977968294 | E7: -0.0210577136 | F7: =D7+F6 -> -0.04948081243 | G7: 0.03789927259 | H7: 1.758954085 | I7: 2.667732984 | L7: Densidade | M7: FALSE
A8: 2006-06-01 | B8: 36631 | C8: 49.95 | D8: 0.002761035638 | E8: 0.03152269137 | F8: =D8+F7 -> -0.04671977679 | G8: 0.06942196396 | H8: 6.10005052 | I8: 2.616930508 | L8: Digite um retorno desejado -> | O8: 0.1
A9: 2006-07-01 | B9: 37077 | C9: 47.52 | D9: 0.01210195483 | E9: -0.04987183004 | F9: =D9+F8 -> -0.03461782196 | G9: 0.01955013392 | H9: 6.046019262 | I9: 2.556224148 | L9: Este retorno ocorrerá a cada (assumindo que sejam normalmente distribuídos)
A10: 2006-08-01 | B10: 36232 | C10: 45.35 | D10: -0.02305412502 | E10: -0.04674049849 | F10: -0.05767194698 | G10: -0.02719036457 | H10: 5.622532357 | I10: 2.572805054 | N10: =L3 -> ^BVSP | O10: =1/(1-_xlfn.NORM.DIST($O$8,M3,N3,TRUE)) -> 14.34012665 | P10: meses
A11: 2006-09-01 | B11: 36449 | C11: 47.4 | D11: 0.005971316982 | E11: 0.04421205214 | F11: =D11+F10 -> -0.05170063 | G11: 0.01702168757 | H11: 6.095435842 | I11: 2.556304483 | N11: =L4 -> PETR3.SA | O11: =1/(1-_xlfn.NORM.DIST($O$8,M4,N4,TRUE)) -> 4.09463113 | P11: meses
A12: 2006-10-01 | B12: 39263 | C12: 51 | D12: =IF(ISERR(LN(B12)-LN(B11)),D11,LN(B12)-LN(B11)) -> 0.07436857635 | E12: 0.07320340402 | F12: 0.02266794635 | G12: 0.09022509159 | H12: 3.383185497 | I12: 2.357455099
A13: 2006-11-01 | B13: 41932 | C13: 54.49 | D13: 0.06576665901 | E13: 0.06619156587 | F13: =D13+F12 -> 0.08843460535 | G13: =E13+G12 -> 0.1564166575 | H13: 3.868981254 | I13: 2.412507446
A14: 2006-12-01 | B14: 44474 | C14: 52 | D14: 0.05885549017 | E14: -0.04677348001 | F14: 0.1472900955 | G14: 0.1096431774 | H14: 4.25569427 | I14: 2.572635819
A15: 2007-01-01 | B15: 44642 | C15: 47.85 | D15: 0.00377037118 | E15: -0.08317260068 | F15: 0.1510604667 | G15: 0.02647057677 | H15: 6.100183362 | I15: 2.321548475
A16: 2007-02-01 | B16: 43892 | C16: 51.74 | D16: -0.01694304881 | E16: 0.07816005886 | F16: 0.1341174179 | G16: 0.1046306356 | H16: 5.813345721 | I16: 2.316177393
A17: 2007-03-01 | B17: 45805 | C17: 51.2 | D17: 0.04266118434 | E17: -0.01049164471 | F17: 0.1767786022 | G17: 0.09413899091 | H17: 5.092365163 | I17: 2.684358217
A18: 2007-04-01 | B18: 48956 | C18: 51.76 | D18: 0.06652868005 | E18: 0.01087811815 | F18: 0.2433072823 | G18: 0.1050171091 | H18: 3.825937736 | I18: 2.676516281
A19: 2007-05-01 | B19: 52268 | C19: 58.78 | D19: 0.06546239361 | E19: 0.1271840108 | F19: 0.3087696759 | G19: 0.2322011199 | H19: 3.886155564 | I19: 1.831507511
A20: 2007-06-01 | B20: 54392 | C20: 61.01 | D20: 0.0398327551 | E20: 0.03723612417 | F20: 0.348602431 | G20: 0.269437244 | H20: 5.221580304 | I20: 2.591801133
A21: 2007-07-01 | B21: 54183 | C21: 61 | D21: -0.003849878115 | E21: -0.0001639209904 | F21: 0.3447525529 | G21: 0.269273323 | H21: 6.063364531 | I21: 2.687513018
A22: 2007-08-01 | B22: 54637 | C22: 69.3 | D22: 0.008344102814 | E22: 0.127571042 | F22: 0.3530966557 | G22: 0.3968443651 | H22: 6.082599492 | I22: 1.827322568
A23: 2007-09-01 | B23: 60465 | C23: 82.78 | D23: 0.1013533763 | E23: 0.1777415801 | F23: 0.454450032 | G23: 0.5745859452 | H23: 1.985036374 | I23: 1.282408554
A24: 2007-10-01 | B24: 65318 | C24: 84.6 | D24: 0.0772029639 | E24: 0.02174778029 | F24: 0.5316529959 | G24: 0.5963337255 | H24: 3.224626209 | I24: 2.651362868
A25: 2007-11-01 | B25: 63006 | C25: 105 | D25: -0.03603768919 | E25: 0.2160260835 | F25: 0.4956153067 | G25: 0.812359809 | H25: 5.08803497 | I25: 0.9063365563
A26: 2007-12-01 | B26: 63886 | C26: 96.4 | D26: 0.0138702851 | E26: -0.08545414854 | F26: 0.5094855918 | G26: 0.7269056605 | H26: 6.021998092 | I26: 2.30203633
A27: 2008-01-01 | B27: 59490 | C27: 97.7 | D27: -0.07129201385 | E27: 0.01339535743 | F27: 0.438193578 | G27: 0.7403010179 | H27: 3.179874338 | I27: 2.671944831
A28: 2008-02-01 | B28: 63489 | C28: 89.67 | D28: 0.06505843135 | E28: -0.08576529408 | F28: 0.5032520093 | G28: 0.6545357238 | H28: 3.908944387 | I28: 2.299346001
A29: 2008-03-01 | B29: 60968 | C29: 50.6 | D29: -0.04051752618 | E29: -0.5721846887 | F29: 0.4627344831 | G29: 0.08235103516 | H29: 4.870902888 | I29: 0.001713263338
A30: 2008-04-01 | B30: 67868 | C30: 57.4 | D30: 0.1072155058 | E30: 0.126092727 | F30: 0.5699499889 | G30: 0.2084437622 | H30: 1.72857719 | I30: 1.843291676
A31: 2008-05-01 | B31: 72593 | C31: 56.45 | D31: 0.06730385627 | E31: -0.01668901273 | F31: 0.6372538452 | G31: 0.1917547495 | H31: 3.782115522 | I31: 2.676238566
A32: 2008-06-01 | B32: 65018 | C32: 43.94 | D32: -0.1102043438 | E32: -0.2505302236 | F32: 0.5270495014 | G32: -0.05877547418 | H32: 1.35069074 | I32: 0.6676700675
A33: 2008-07-01 | B33: 59505 | C33: 42.66 | D33: -0.088603812 | E33: -0.02956335391 | F33: 0.4384456894 | G33: -0.08833882809 | H33: 2.269663084 | I33: 2.644668886
A34: 2008-08-01 | B34: 55680 | C34: 42.22 | D34: -0.06643932661 | E34: -0.01036767062 | F34: 0.3720063628 | G34: -0.09870649871 | H34: 3.451437684 | I34: 2.684473144
A35: 2008-09-01 | B35: 49541 | C35: 28.61 | D35: -0.1168204065 | E35: -0.3891377354 | F35: 0.2551859563 | G35: -0.4878442341 | H35: 1.127294966 | I35: 0.09083761601
A36: 2008-10-01 | B36: 37257 | C36: 23.75 | D36: -0.2849607629 | E36: -0.1861737766 | F36: -0.0297748066 | G36: -0.6740180107 | H36: =_xlfn.NORM.DIST(D36,AVERAGE(dvec_bovespa),_xlfn.STDEV.S(dvec_bovespa),$M$7) -> 0.000367000099 | I36: =_xlfn.NORM.DIST(E36,AVERAGE(dvec_acao),_xlfn.STDEV.S(dvec_acao),$M$7) -> 1.253221821
A37: 2008-11-01 | B37: 36596 | C37: 27.49 | D37: -0.01790090182 | E37: 0.1462397717 | F37: -0.04767570842 | G37: -0.527778239 | H37: 5.786353273 | I37: 1.623255394
A38: 2008-12-01 | B38: 37550 | C38: 30.37 | D38: 0.02573443339 | E38: 0.09963297688 | F38: -0.02194127503 | G38: -0.4281452621 | H38: 5.753457792 | I38: 2.118082636
A39: 2009-01-01 | B39: 39301 | C39: 32.7 | D39: 0.04557658563 | E39: 0.07391979885 | F39: 0.02363531061 | G39: -0.3542254632 | H39: 4.952816727 | I39: 2.35160612
A40: 2009-02-01 | B40: 38183 | C40: 35.38 | D40: -0.02885957346 | E40: 0.07877161083 | F40: -0.005224262855 | G40: -0.2754538524 | H40: 5.403188383 | I40: 2.310956269
A41: 2009-03-01 | B41: 40926 | C41: 36.84 | D41: 0.06937516752 | E41: 0.04043752266 | F41: 0.06415090466 | G41: -0.2350163297 | H41: 3.664939973 | I41: 2.576156684
A42: 2009-04-01 | B42: 47290 | C42: 43.16 | D42: 0.1445332988 | E42: 0.158329929 | F42: 0.2086842034 | G42: -0.07668640074 | H42: 0.5934872999 | I42: 1.490785575
A43: 2009-05-01 | B43: 53198 | C43: 40.09 | D43: 0.117721945 | E43: -0.07378721374 | F43: 0.3264061484 | G43: -0.1504736145 | H43: 1.322144039 | I43: 2.397602127
A44: 2009-06-01 | B44: 51465 | C44: 38.55 | D44: -0.03311883668 | E44: -0.03917082665 | F44: 0.2932873117 | G44: -0.1896444411 | H44: 5.221489629 | I44: 2.608532791
A45: 2009-07-01 | B45: 54766 | C45: 37.53 | D45: 0.06216759847 | E45: -0.02681548686 | F45: 0.3554549102 | G45: -0.216459928 | H45: 4.071436719 | I45: 2.653050776
A46: 2009-08-01 | B46: 56489 | C46: 40.85 | D46: 0.03097636549 | E46: 0.08476620816 | F46: 0.3864312757 | G46: -0.1316937198 | H46: 5.579852742 | I46: 2.258365517
A47: 2009-09-01 | B47: 61518 | C47: 40.5 | D47: 0.08528388598 | E47: -0.008604847194 | F47: 0.4717151617 | G47: -0.140298567 | H47: 2.783345225 | I47: 2.685905072
A48: 2009-10-01 | B48: 61546 | C48: 44.11 | D48: 0.0004550477879 | E48: 0.08538454 | F48: 0.4721702095 | G48: -0.05491402701 | H48: 6.094297571 | I48: 2.252800339
A49: 2009-11-01 | B49: 67044 | C49: 41.56 | D49: 0.08556425756 | E49: -0.05954834789 | F49: 0.557734467 | G49: -0.1144623749 | H49: 2.768411092 | I49: 2.498618961
A50: 2009-12-01 | B50: 68588 | C50: 38.22 | D50: 0.02276847205 | E50: -0.08377922742 | F50: 0.5805029391 | G50: -0.1982416023 | H50: 5.837430511 | I50: 2.316397849
A51: 2010-01-01 | B51: 65402 | C51: 38.7 | D51: -0.04756475328 | E51: 0.01248066122 | F51: 0.5329381858 | G51: -0.1857609411 | H51: 4.504944849 | I51: 2.673694025
A52: 2010-02-01 | B52: 66503 | C52: 39.7 | D52: 0.01669422039 | E52: 0.02551158766 | F52: 0.5496324062 | G52: -0.1602493534 | H52: 5.974769861 | I52: 2.639406537
A53: 2010-03-01 | B53: 70372 | C53: 36.95 | D53: 0.05654839735 | E53: -0.0717855403 | F53: 0.6061808035 | G53: -0.2320348937 | H53: 4.38229934 | I53: 2.41289347
A54: 2010-04-01 | B54: 67530 | C54: 34.08 | D54: -0.04122351319 | E54: -0.08085494543 | F54: 0.5649572904 | G54: -0.3128898392 | H54: 4.835469975 | I54: 2.340972295
A55: 2010-05-01 | B55: 63047 | C55: 31 | D55: -0.06869146359 | E55: -0.09472349748 | F55: 0.4962658268 | G55: -0.4076133366 | H55: 3.324910931 | I55: 2.219036193
A56: 2010-06-01 | B56: 60936 | C56: 32.04 | D56: -0.03405634692 | E56: 0.03299791772 | F56: 0.4622094798 | G56: -0.3746154189 | H56: 5.179372547 | I56: 2.610789272
A57: 2010-07-01 | B57: 67515 | C57: 29.59 | D57: 0.1025256623 | E57: -0.07954865579 | F57: 0.5647351422 | G57: -0.4541640747 | H57: 1.932115609 | I57: 2.351738869
A58: 2010-08-01 | B58: 65145 | C58: 30.4 | D58: -0.03573424076 | E58: 0.027006142 | F58: 0.5290009014 | G58: -0.4271579327 | H58: 5.102222125 | I58: 2.63420388
A59: 2010-09-01 | B59: 69430 | C59: 28.55 | D59: 0.06370349611 | E59: -0.06278567231 | F59: 0.5927043975 | G59: -0.489943605 | H59: 3.985250483 | I59: 2.477286262
A60: 2010-10-01 | B60: 70673 | C60: 27.37 | D60: 0.01774455386 | E60: -0.04220941305 | F60: 0.6104489514 | G60: -0.5321530181 | H60: 5.954465014 | I60: 2.594942706
A61: 2010-11-01 | B61: 67705 | C61: 30.55 | D61: -0.04290357219 | E61: 0.1099171626 | F61: 0.5675453792 | G61: -0.4222358555 | H61: 4.749955626 | I61: 2.014312263
A62: 2010-12-01 | B62: 69305 | C62: 30.05 | D62: 0.02335702123 | E62: -0.01650202464 | F62: 0.5909024004 | G62: -0.4387378802 | H62: 5.821622761 | I62: 2.676551471
A63: 2011-01-01 | B63: 66575 | C63: 32.6 | D63: -0.04018792197 | E63: 0.08144962739 | F63: 0.5507144785 | G63: -0.3572882528 | H63: 4.88733921 | I63: 2.287773463
A64: 2011-02-01 | B64: 67383 | C64: 32.62 | D64: 0.01206362888 | E64: 0.0006133088202 | F64: 0.5627781073 | G64: -0.3566749439 | H64: 6.046491998 | I64: 2.687224082
A65: 2011-03-01 | B65: 68587 | C65: 28.89 | D65: 0.01771025182 | E65: -0.1214300827 | F65: 0.5804883592 | G65: -0.4781050267 | H65: 5.955151308 | I65: 1.9531917
A66: 2011-04-01 | B66: 66133 | C66: 26.83 | D66: -0.03643514655 | E66: -0.07397485004 | F66: 0.5440532126 | G66: -0.5520798767 | H66: 5.069347157 | I66: 2.396151355
A67: 2011-05-01 | B67: 64620 | C67: 26.25 | D67: -0.02314390545 | E67: -0.0218546754 | F67: 0.5209093072 | G67: -0.5739345521 | H67: 5.619410476 | I67: 2.66593514
A68: 2011-06-01 | B68: 62404 | C68: 26 | D68: -0.03489458451 | E68: -0.009569451016 | F68: 0.4860147226 | G68: -0.5835040031 | H68: =_xlfn.NORM.DIST(D68,AVERAGE(dvec_bovespa),_xlfn.STDEV.S(dvec_bovespa),$M$7) -> 5.141108239 | I68: =_xlfn.NORM.DIST(E68,AVERAGE(dvec_acao),_xlfn.STDEV.S(dvec_acao),$M$7) -> 2.685168365
A69: 2011-07-01 | B69: 58823 | C69: 22.95 | D69: -0.059096441 | E69: -0.1247786015 | F69: 0.4269182816 | G69: -0.7082826046 | H69: 3.866398983 | I69: 1.917803892
A70: 2011-08-01 | B70: 56495 | C70: 20.9 | D70: =IF(ISERR(LN(B70)-LN(B69)),D69,LN(B70)-LN(B69)) -> -0.04038079622 | E70: =IF(ISERR(LN(C70)-LN(C69)),E69,LN(C70)-LN(C69)) -> -0.09356877754 | F70: =D70+F69 -> 0.3865374854 | G70: =E70+G69 -> -0.8018513822 | H70: 4.877729498 | I70: 2.229684594
A71: 2011-09-01 | B71: 52324 | C71: 23.08 | D71: -0.07669698184 | E71: 0.09921728267 | F71: 0.3098405036 | G71: -0.7026340995 | H71: 2.883728691 | I71: 2.12217345
A72: 2011-10-01 | B72: 58338 | C72: 24.12 | D72: 0.1087985252 | E72: 0.04407493022 | F72: 0.4186390288 | G72: -0.6585591693 | H72: 1.662900824 | I72: 2.557051942
A73: 2011-11-01 | B73: 56875 | C73: 23 | D73: -0.02539780478 | E73: -0.04754715593 | F73: 0.393241224 | G73: -0.7061063252 | H73: 5.538181167 | I73: 2.568632745
A74: 2011-12-01 | B74: 56754 | C74: 26.91 | D74: -0.002129738812 | E74: 0.1570037488 | F74: 0.3911114852 | G74: -0.5491025764 | H74: 6.07886472 | I74: 1.505259428
A75: 2012-01-01 | B75: 63072 | C75: 25.7 | D75: 0.1055507925 | E75: -0.04600697284 | F75: 0.4966622777 | G75: -0.5951095492 | H75: 1.79930523 | I75: 2.576538911
A76: 2012-02-01 | B76: 65812 | C76: 24.3 | D76: 0.04252526155 | E76: -0.05601464155 | F76: 0.5391875393 | G76: -0.6511241908 | H76: 5.098719086 | I76: 2.52074508
A77: 2012-03-01 | B77: 64511 | C77: 22.39 | D77: -0.01996644063 | E77: -0.08186191974 | F77: 0.5192210987 | G77: -0.7329861105 | H77: 5.724390952 | I77: 2.332583029
A78: 2012-04-01 | B78: 61820 | C78: 19.8 | D78: -0.04260881519 | E78: -0.1229324929 | F78: 0.4766122835 | G78: -0.8559186034 | H78: 4.765075958 | I78: 1.937355845
A79: 2012-05-01 | B79: 54490 | C79: 18.9 | D79: -0.1262097381 | E79: -0.04652001563 | F79: 0.3504025454 | G79: -0.9024386191 | H79: 0.8569910102 | I79: 2.573933414
A80: 2012-06-01 | B80: 54355 | C80: 20.05 | D80: -0.002480592939 | E80: 0.05906723169 | F80: 0.3479219524 | G80: -0.8433713874 | H80: 6.076041214 | I80: 2.464120616
A81: 2012-07-01 | B81: 56097 | C81: 21.3 | D81: 0.03154572951 | E81: 0.06047791896 | F81: 0.3794676819 | G81: -0.7828934684 | H81: 5.559163658 | I81: 2.454262741
A82: 2012-08-01 | B82: 57061 | C82: 23.3 | D82: 0.01703853588 | E82: 0.08974628786 | F82: 0.3965062178 | G82: -0.6931471806 | H82: 5.968275619 | I82: 2.212839595
A83: 2012-09-01 | B83: 59176 | C83: 21.5 | D83: 0.03639518324 | E83: -0.08040042544 | F83: 0.432901401 | G83: -0.773547606 | H83: 5.369507049 | I83: 2.344733497
A84: 2012-10-01 | B84: 57068 | C84: 19.1 | D84: -0.03627251503 | E84: -0.1183646001 | F84: 0.396628886 | G84: -0.8919122061 | H84: 5.077008189 | I84: 1.985274347
A85: 2012-11-01 | B85: 57475 | C85: 19.55 | D85: 0.007106531397 | E85: 0.02328695138 | F85: 0.4037354174 | G85: -0.8686252547 | H85: 6.090291396 | I85: 2.646672608
A86: 2012-12-01 | B86: 60952 | C86: 18.23 | D86: 0.05873659852 | E86: -0.06990669774 | F86: 0.4624720159 | G86: -0.9385319524 | H86: 4.26225795 | I86: 2.426933529
A87: 2013-01-01 | B87: 59761 | C87: 14.49 | D87: -0.01973339489 | E87: -0.2296098324 | F87: 0.442738621 | G87: -1.168141785 | H87: 5.731634707 | I87: 0.8364025599
A88: 2013-02-01 | B88: 57424 | C88: 16.9 | D88: -0.03989093988 | E88: 0.1538548656 | F88: 0.4028476812 | G88: -1.014286919 | H88: 4.902089616 | I88: 1.539699064
A89: 2013-03-01 | B89: 56352 | C89: 19.19 | D89: -0.01884460209 | E89: 0.1270756881 | F89: 0.3840030791 | G89: -0.8872112311 | H89: 5.758673951 | I89: 1.832678281
A90: 2013-04-01 | B90: 55910 | C90: 18.97 | D90: -0.007874477275 | E90: -0.01153052607 | F90: 0.3761286018 | G90: -0.8987417572 | H90: 6.010983416 | I90: 2.683321762
A91: 2013-05-01 | B91: 53506 | C91: 14.8 | D91: -0.04394945789 | E91: -0.2482316032 | F91: 0.3321791439 | G91: -1.14697336 | H91: 4.695920449 | I91: 0.685070822
A92: 2013-06-01 | B92: 47457 | C92: 15.38 | D92: -0.1199697593 | E92: 0.03844078331 | F92: 0.2122093846 | G92: -1.108532577 | H92: 1.030623486 | I92: 2.586044331
A93: 2013-07-01 | B93: 48234 | C93: 16.05 | D93: 0.01624012869 | E93: 0.0426408855 | F93: 0.2284495133 | G93: -1.065891692 | H93: 5.983091829 | I93: 2.56475093
A94: 2013-08-01 | B94: 50008 | C94: 16.96 | D94: 0.03611882606 | E94: 0.05514878079 | F94: 0.2645683394 | G94: -1.010742911 | H94: 5.380934066 | I94: 2.49053022
A95: 2013-09-01 | B95: 52338 | C95: 19.54 | D95: 0.04553969205 | E95: 0.1416060163 | F95: 0.3101080314 | G95: -0.8691368945 | H95: 4.954620073 | I95: 1.674144545
A96: 2013-10-01 | B96: 54256 | C96: 18.32 | D96: 0.0359909007 | E96: -0.06447028737 | F96: 0.3460989321 | G96: -0.9336071819 | H96: 5.386199279 | I96: 2.465793342
A97: 2013-11-01 | B97: 52482 | C97: 15.99 | D97: -0.03324333172 | E97: -0.1360298324 | F97: 0.3128556004 | G97: -1.069637014 | H97: 5.215938825 | I97: 1.796816653
A98: 2013-12-01 | B98: 51507 | C98: 13.77 | D98: -0.0187525329 | E98: -0.1494712141 | F98: 0.2941030675 | G98: -1.219108228 | H98: 5.761421373 | I98: 1.649767005
A99: 2014-01-01 | B99: 47639 | C99: 12.99 | D99: -0.07806596726 | E99: -0.05831248206 | F99: 0.2160371003 | G99: -1.27742071 | H99: 2.810155097 | I99: 2.50649666
A100: 2014-02-01 | B100: 47094 | C100: 14.96 | D100: -0.01150614913 | E100: 0.1412001419 | F100: 0.2045309511 | G100: -1.136220569 | H100: =_xlfn.NORM.DIST(D100,AVERAGE(dvec_bovespa),_xlfn.STDEV.S(dvec_bovespa),$M$7) -> 5.944748823 | I100: =_xlfn.NORM.DIST(E100,AVERAGE(dvec_acao),_xlfn.STDEV.S(dvec_acao),$M$7) -> 1.678599307
A101: 2014-03-01 | B101: 50415 | C101: 15.68 | D101: 0.06814314547 | E101: 0.04700604238 | F101: 0.2726740966 | G101: -1.089214526 | H101: 3.734642958 | I101: 2.540649477
A102: 2014-04-01 | B102: 51627 | C102: 15.61 | D102: 0.02375604161 | E102: -0.004474280395 | F102: 0.2964301382 | G102: -1.093688807 | H102: 5.81066219 | I102: 2.687777773
A103: 2014-05-01 | B103: 51239 | C103: 16.24 | D103: -0.007543830616 | E103: 0.03956560021 | F103: 0.2888863076 | G103: -1.054123206 | H103: 6.016128749 | I103: 2.580527141
A104: 2014-06-01 | B104: 53168 | C104: 17.99 | D104: 0.03695575078 | E104: 0.1023387132 | F104: 0.3258420584 | G104: -0.9517844932 | H104: 5.34610954 | I104: 2.091246791
A105: 2014-07-01 | B105: 55829 | C105: 22.08 | D105: 0.04883673603 | E105: 0.2048561734 | F105: 0.3746787944 | G105: -0.7469283197 | H105: 4.790002877 | I105: 1.009843702
A106: 2014-08-01 | B106: 61288 | C106: 17.25 | D106: 0.09329061757 | E106: -0.2468600779 | F106: 0.467969412 | G106: -0.9937883977 | H106: 2.36974402 | I106: 0.6955891779
A107: 2014-09-01 | B107: 54116 | C107: 14.65 | D107: -0.1244541745 | E107: -0.163371808 | F107: 0.3435152375 | G107: -1.157160206 | H107: 0.9034791058 | I107: 1.497366163
A108: 2014-10-01 | B108: 54629 | C108: 12.18 | D108: 0.009434986538 | E108: -0.1846450732 | F108: 0.352950224 | G108: -1.341805279 | H108: 6.07402334 | I108: 1.269202512
A109: 2014-11-01 | B109: 54664 | C109: 9.59 | D109: 0.000640480199 | E109: -0.2390743734 | F109: 0.3535907042 | G109: -1.580879652 | H109: 6.095040176 | I109: 0.757206855
A110: 2014-12-01 | B110: 50007 | C110: 8.04 | D110: -0.08904236185 | E110: -0.1762918057 | F110: 0.2645483424 | G110: -1.757171458 | H110: 2.248310322 | I110: 1.357647464
A111: 2015-01-01 | B111: 46908 | C111: 9.48 | D111: -0.06397475903 | E111: 0.1647552331 | F111: 0.2005735834 | G111: -1.592416225 | H111: 3.590540016 | I111: 1.420999332
A112: 2015-02-01 | B112: 51583 | C112: 9.58 | D112: 0.09500392424 | E112: 0.01049327572 | F112: 0.2955775076 | G112: -1.581922949 | H112: 2.285103131 | I112: 2.677147998
A113: 2015-03-01 | B113: 51150 | C113: 14.25 | D113: -0.008429668443 | E113: 0.3970793147 | F113: 0.2871478392 | G113: -1.184843634 | H113: 6.002008636 | I113: 0.07127964271
A114: 2015-04-01 | B114: 56229 | C114: 13.25 | D114: 0.09467014565 | E114: -0.07275935428 | F114: 0.3818179848 | G114: -1.257602989 | H114: 2.301475824 | I114: 2.40549674
A115: 2015-05-01 | B115: 52760 | C115: 14.03 | D115: -0.0636793102 | E115: 0.05720034168 | F115: 0.3181386746 | G115: -1.200402647 | H115: 3.607243443 | I115: 2.476883301
A116: 2015-06-01 | B116: 53081 | C116: 11.58 | D116: 0.006065720925 | E116: -0.191918422 | F116: 0.3242043955 | G116: -1.392321069 | H116: 6.095077882 | I116: 1.193814053
A117: 2015-07-01 | B117: 50865 | C117: 10.62 | D117: =IF(ISERR(LN(B117)-LN(B116)),D116,LN(B117)-LN(B116)) -> -0.04264398453 | E117: =IF(ISERR(LN(C117)-LN(C116)),E116,LN(C117)-LN(C116)) -> -0.08654045633 | F117: =D117+F116 -> 0.281560411 | G117: =E117+G116 -> -1.478861525 | H117: =_xlfn.NORM.DIST(D117,AVERAGE(dvec_bovespa),_xlfn.STDEV.S(dvec_bovespa),$M$7) -> 4.763274413 | I117: =_xlfn.NORM.DIST(E117,AVERAGE(dvec_acao),_xlfn.STDEV.S(dvec_acao),$M$7) -> 2.292613384
A118: 2015-08-01 | B118: 46626 | C118: 8.54 | D118: -0.08701673879 | E118: -0.217978008 | F118: 0.1945436722 | G118: -1.696839533 | H118: 2.34776327 | I118: 0.939917526
A119: 2015-09-01 | B119: 45059 | C119: 9.38 | D119: =IF(ISERR(LN(B119)-LN(B118)),D118,LN(B119)-LN(B118)) -> -0.03418558333 | E119: =IF(ISERR(LN(C119)-LN(C118)),E118,LN(C119)-LN(C118)) -> 0.09381875522 | F119: =D119+F118 -> 0.1603580889 | G119: =E119+G118 -> -1.603020778 | H119: =_xlfn.NORM.DIST(D119,AVERAGE(dvec_bovespa),_xlfn.STDEV.S(dvec_bovespa),$M$7) -> 5.173509999 | I119: =_xlfn.NORM.DIST(E119,AVERAGE(dvec_acao),_xlfn.STDEV.S(dvec_acao),$M$7) -> 2.174473301
A120: 2015-10-01 | B120: 45869 | C120: 9.41 | D120: 0.0178167655 | E120: 0.003193190579 | F120: 0.1781748544 | G120: -1.599827588 | H120: 5.953015154 | I120: 2.685737196
A121: 2015-11-01 | B121: 45120 | C121: 8.57 | D121: -0.01646390044 | E121: -0.09350522099 | F121: 0.161710954 | G121: -1.693332809 | H121: 5.826426379 | I121: 2.230268251
A122: 2015-12-01 | B122: 43350 | C122: 6.93 | D122: -0.04001890396 | E122: -0.2124079194 | F122: 0.12169205 | G122: -1.905740728 | H122: 4.895740868 | I122: 0.9917711752
A123: 2016-01-01 | B123: 40406 | C123: 7.35 | D123: -0.07032841444 | E123: 0.05884050002 | F123: 0.05136363556 | G123: -1.846900228 | H123: 3.233459044 | I123: 2.465687927
A124: 2016-02-01 | B124: 42794 | C124: 10.63 | D124: =IF(ISERR(LN(B124)-LN(B123)),D123,LN(B124)-LN(B123)) -> 0.05741961705 | E124: =IF(ISERR(LN(C124)-LN(C123)),E123,LN(C124)-LN(C123)) -> 0.3689798791 | F124: =D124+F123 -> 0.1087832526 | G124: =E124+G123 -> -1.477920349 | H124: =_xlfn.NORM.DIST(D124,AVERAGE(dvec_bovespa),_xlfn.STDEV.S(dvec_bovespa),$M$7) -> 4.334687133 | I124: =_xlfn.NORM.DIST(E124,AVERAGE(dvec_acao),_xlfn.STDEV.S(dvec_acao),$M$7) -> 0.1166068087
A125: 2016-03-01 | B125: 50055 | C125: 13.27 | D125: 0.156724495 | E125: 0.221825656 | F125: 0.2655077476 | G125: -1.256094693 | H125: 0.3900255061 | I125: 0.8549380388
A126: 2016-04-01 | B126: 53911 | C126: 10.18 | D126: 0.07421213785 | E126: -0.2650808372 | F126: 0.3397198855 | G126: -1.52117553 | H126: 3.391974921 | I126: 0.5641762359
A127: 2016-05-01 | B127: 48472 | C127: 11.51 | D127: -0.1063482271 | E127: 0.1227912116 | F127: 0.2333716584 | G127: -1.398384318 | H127: 1.493720547 | I127: 1.878788009
A128: 2016-06-01 | B128: 51527 | C128: 14.01 | D128: 0.06111963049 | E128: 0.1965551376 | F128: 0.2944912889 | G128: -1.201829181 | H128: 4.130002668 | I128: 1.090343043
A129: 2016-07-01 | B129: 57308 | C129: 14.74 | D129: 0.1063342879 | E129: 0.05079352641 | F129: 0.4008255768 | G129: -1.151035654 | H129: 1.76580624 | I129: 2.518155605
A130: 2016-08-01 | B130: 57901 | C130: 15.54 | D130: 0.01029442556 | E130: 0.05285245818 | F130: 0.4111200024 | G130: -1.098183196 | H130: 6.066086397 | I130: 2.505326663
A131: 2016-09-01 | B131: 58994 | C131: 32.47 | D131: 0.01870108823 | E131: 0.7368992412 | F131: 0.4298210906 | G131: -0.361283955 | H131: 5.934701469 | I131: 1.084959239e-05

Sheet Estat_descritiva
C3: -0.1759445542 | D3: -0.2266926175 | G3: Distribuição de frequência | J3: Distribuição de frequência
C4: 1.398573661 | D4: 1.707553094 | G4: interval | H4: freq | I4: %freq | J4: interval | K4: %cum freq
C5: -0.821601179 | D5: -0.9596488614 | F5: ="<"&G5 -> <-0,16 | G5: -0.16 | H5: =FREQUENCY(dvec_acao,G5:G14) -> 15 | I5: =H5/$H$17 -> 0.1171875 | J5: -0.16 | K5: =I5 -> 0.1171875
C6: -2.52693142 | D6: -2.044180969 | F6: =">="&G5&" e "&"<"&G6 -> >=-0,16 e <-0,12 | G6: -0.12 | H6: 5 | I6: =H6/$H$17 -> 0.0390625 | J6: -0.12 | K6: =I6+K5 -> 0.15625
C7: -0.1479679883 | D7: -0.1867561211 | F7: =">="&G6&" e "&"<"&G7 -> >=-0,12 e <-0,08 | G7: -0.08 | H7: 12 | I7: 0.09375 | J7: -0.08 | K7: =I7+K6 -> 0.25
C8: 2.351297082 | D8: 2.23616247 | F8: >=-0,08 e <-0,04 | G8: -0.04 | H8: 18 | I8: 0.140625 | J8: -0.04 | K8: =I8+K7 -> 0.390625
C9: 0.2654807339 | D9: 0.2266926175 | F9: >=-0,04 e <0 | G9: 0 | H9: 16 | I9: 0.125 | J9: 0 | K9: =I9+K8 -> 0.515625
C10: 0.9385692021 | D10: 1.091952907 | F10: >=0 e <0,04 | G10: 0.04 | H10: 15 | I10: 0.1171875 | J10: 0.04 | K10: 0.6328125
C11: 1.143884836 | D11: 1.336804225 | F11: >=0,04 e <0,08 | G11: 0.08 | H11: 17 | I11: 0.1328125 | J11: 0.08 | K11: 0.765625
C12: -0.9385122925 | D12: -1.023560553 | F12: >=0,08 e <0,12 | G12: 0.12 | H12: 10 | I12: 0.078125 | J12: 0.12 | K12: 0.84375
C13: 0.2115763787 | D13: 0.1669029731 | F13: >=0,12 e <0,16 | G13: 0.16 | H13: 11 | I13: 0.0859375 | J13: 0.16 | K13: 0.9296875
C14: 0.3040780431 | D14: 0.2669941254 | F14: >=0,16 e <0,2 | G14: 0.2 | H14: 3 | I14: 0.0234375 | J14: 0.2 | K14: 0.953125
C15: 0.7124343424 | D15: 0.8423177173 | F15: =">="&G14 -> >=0,2 | H15: 6 | I15: 0.046875 | K15: 1
C16: 0.6494751274 | D16: 0.6607511271
C17: 1.462395717 | D17: 1.798329823 | G17: Total | H17: =SUM(H5:H15) -> 128
C18: -0.9733359514 | D18: -1.057138587
C19: -1.290718319 | D19: -1.336804225 | G19: Quantis | H19: via Excel Fns.
C20: 0.276919465 | D20: 0.246793261 | G20: quart no. | H20: Q points | I20: Q %
C21: -0.3099653374 | D21: -0.3908522745 | G21: 0 | H21: =QUARTILE(dvec_acao,G21) -> -0.5721846887 | I21: 0
C22: 0.6758051664 | D22: 0.7355767699 | G22: 1 | H22: =QUARTILE(dvec_acao,G22) -> -0.0797615982 | I22: 0.25
C23: -0.7027693562 | D23: -0.8994349077 | G23: 2 | H23: =QUARTILE(dvec_acao,G23) -> -0.002319100693 | I23: 0.5
C24: -0.560932668 | D24: -0.6852639311 | G24: 3 | H24: =QUARTILE(dvec_acao,G24) -> 0.07497986385 | I24: 0.75
C25: -2.70477479 | D25: -2.23616247 | G25: 4 | H25: =QUARTILE(dvec_acao,G25) -> 0.7368992412 | I25: 1
C26: 1.248329427 | D26: 1.559371904
C27: 1.152269893 | D27: 1.386179801
C28: 0.4563909769 | D28: 0.4334094328
C29: 0.1686173365 | D29: 0.08806556972
C30: -1.467179491 | D30: -1.559371904
C31: -0.145639637 | D31: -0.1669029731
C32: 0.7683665952 | D32: 0.8994349077
C33: -2.916455509 | D33: -2.584692474
C34: -2.406811849 | D34: -1.906925663
C35: 0.3874782126 | D35: 0.3489917322
C36: 0.2245152728 | D36: 0.1867561211
C37: 0.6410910368 | D37: 0.6366290907
C38: 0.7072230042 | D38: 0.8147687735
C39: 0.02641481379 | D39: -0.02932149074
C40: 4.053442042 | D40: 2.584692474
C41: 1.778656795 | D41: 1.906925663
C42: -0.5862416414 | D42: -0.7101956049
C43: 1.160219373 | D43: 1.439187289
C44: 0.8492793791 | D44: 1.057138587
C45: 0.5260637364 | D45: 0.5210396059
C46: 0.9715916323 | D46: 1.20534492
C47: 0.7774565964 | D47: 0.9596488614
C48: 1.086997246 | D48: 1.246786932
C49: -0.1759445542 | D49: -0.2266926175
C50: -0.1935594239 | D50: -0.3077341915
C51: -0.8409308658 | D51: -0.9910986198
C52: 0.9555389266 | D52: 1.128143645
C53: 0.5834807158 | D53: 0.543559495
C54: 0.7880184504 | D54: 0.9910986198
C55: 0.1883672221 | D55: 0.1471153988
C56: -0.6233298546 | D56: -0.7614409066
C57: -0.07827228 | D57: -0.1077046012
C58: -0.1808087722 | D58: -0.246793261
C59: 2.029315289 | D59: 2.044180969
C60: 0.7746816599 | D60: 0.9291207526
C61: -0.2690884081 | D61: -0.3489917322
C62: -0.6687694224 | D62: -0.8423177173
C63: -0.544629084 | D63: -0.5894557978
C64: -0.1920666378 | D64: -0.2669941254
C65: -0.6871255758 | D65: -0.870521281
C66: 0.391566438 | D66: 0.369840986
C67: -1.220879027 | D67: -1.246786932
C68: -1.098381056 | D68: -1.16587567
C69: 0.6671947743 | D69: 0.7101956049
C70: 1.131477047 | D70: 1.29048853
C71: -1.52321803 | D71: -1.628996121
C72: 1.390524202 | D72: 1.628996121
C73: 0.1339837347 | D73: 0.04888160901
C74: -1.359243619 | D74: -1.386179801
C75: 0.5137380304 | D75: 0.4987809304
C76: 0.6158899713 | D76: 0.5894557978
C77: 0.9593649447 | D77: 1.16587567
C78: -0.3814091288 | D78: -0.4549811403
C79: 0.5070570058 | D79: 0.4767666938
C80: -0.4515772467 | D80: -0.5210396059
C81: 0.3218840255 | D81: 0.2873045458
C82: 0.5847166181 | D82: 0.5663585038
C83: -0.401977622 | D83: -0.4767666938
C84: -0.5513141329 | D84: -0.6366290907
C85: -0.0617514376 | D85: -0.06846044899
C86: 0.6537463218 | D86: 0.6852639311
C87: -0.07343156967 | D87: -0.08806556972
C88: -0.6356754924 | D88: -0.7878247528
C89: -1.28917565 | D89: -1.29048853
C90: -0.1921800787 | D90: -0.2873045458
C91: -1.059982055 | D91: -1.128143645
C92: 0.155814057 | D92: 0.06846044899
C93: 0.2456292733 | D93: 0.2066831598
C94: -0.1234864618 | D94: -0.1273852656
C95: -0.0264298758 | D95: -0.04888160901
C96: -0.5267345978 | D96: -0.543559495
C97: -0.1427094088 | D97: -0.1471153988
C98: -1.958324311 | D98: -1.798329823
C99: 0.05760565929 | D99: -0.009772585471
C100: 1.192278435 | D100: 1.496578669
C101: 0.09721924046 | D101: 0.02932149074
C102: 0.6868733231 | D102: 0.7614409066
C103: -0.551905796 | D103: -0.6607511271
C104: 0.1816570713 | D104: 0.1273852656
C105: 0.5050405329 | D105: 0.4549811403
C106: -1.415189703 | D106: -1.439187289
C107: -0.5281799611 | D107: -0.5663585038
C108: -0.3729636657 | D108: -0.4334094328
C109: -0.3046249945 | D109: -0.369840986
C110: -0.6626838064 | D110: -0.8147687735
C111: 0.07691674097 | D111: 0.009772585471
C112: 0.8095257139 | D112: 1.023560553
C113: -0.7283485262 | D113: -0.9291207526
C114: 0.6290922748 | D114: 0.612871947
C115: 0.3821521262 | D115: 0.328293103
C116: -0.2147207433 | D116: -0.328293103
C117: -1.416916417 | D117: -1.496578669
C118: -0.5508205261 | D118: -0.612871947
C119: -0.4152043073 | D119: -0.4987809304
C120: -0.9846211971 | D120: -1.091952907
C121: 0.3274779186 | D121: 0.3077341915
C122: -0.6157036902 | D122: -0.7355767699
C123: -0.330081855 | D123: -0.4120375636
C124: -1.884800108 | D124: -1.707553094
C125: 0.4094603316 | D125: 0.4120375636
C126: 0.3973317045 | D126: 0.3908522745
C127: 0.1796080271 | D127: 0.1077046012
C128: 0.6914264114 | D128: 0.7878247528
C129: -1.151565321 | D129: -1.20534492
C130: 0.7459709366 | D130: 0.870521281

Sheet Beta
U1: =B5 -> Ação (PETR3.SA)
A2: Estimando o coeficiente Beta com o uso de Retornos logarítimicos | H2: Risk-free asset return | J2: 0.04 | K2: a year | L2: Modo 2 - Output from Linest
J3: =(1+J2)^(1/12)-1 -> 0.003273739782 | K3: a month
L4: Beta | M4: =LINEST(Retornos_Mensais!E4:E131,Retornos_Mensais!D4:D131,TRUE,TRUE) -> 0.5551592593 | N4: -0.004686743073 | O4: Alpha | U4: Teste Z | V4: Teste N
A5: Mês | B5: ="Ação "&"("&Retornos_Mensais!C3 &")" -> Ação (PETR3.SA) | C5: ="Índice ("&Retornos_Mensais!B3&")" -> Índice (^BVSP) | E5: Previstos (fitted) | F5: Resíduos | H5: Modo 1 - Funções de regressão do Excel | L5: Beta (Erro padrão) | M5: 0.196041261 | N5: 0.01278730929 | O5: Alpha (SE) | T5: =A5 -> Mês
L6: =H9 -> R-Quadrado | M6: 0.05983738856 | N6: 0.144480052 | O6: STEYX
A7: 1 | B7: =Retornos_Mensais!E4-$J$3 -> -0.003273739782 | C7: =Retornos_Mensais!D4-$J$3 -> -0.003273739782 | E7: =$I$7+$I$8*B7 -> -0.007960482855 | F7: =B7-E7 -> 0.004686743073 | H7: INTERCEPTO | I7: =INTERCEPT(B7:B134,C7:C134) -> -0.006143035902 | L7: F | M7: 8.019369061 | N7: 126 | O7: N-2 | T7: 1 | U7: =ZNplotmat(B7:B134) -> 0.01901730149 | V7: 0.02932149074
A8: 2 | B8: =Retornos_Mensais!E5-$J$3 -> 0.08714741102 | C8: =Retornos_Mensais!D5-$J$3 -> -0.01456618964 | E8: =$I$7+$I$8*C8 -> -0.01422959096 | F8: =B8-E8 -> 0.101377002 | H8: INCLINAÇÃO | I8: =SLOPE(B7:B134,C7:C134) -> 0.5551592593 | L8: Regression SS | M8: 0.1674002025 | N8: 2.630185162 | O8: Residual SS | T8: 2 | U8: 0.6282458088 | V8: 0.8423177173
A9: 3 | B9: =Retornos_Mensais!E6-$J$3 -> -0.0347379044 | C9: =Retornos_Mensais!D6-$J$3 -> 0.05831758059 | E9: =$I$7+$I$8*C9 -> 0.02623250894 | F9: =B9-E9 -> -0.06097041334 | H9: R-Quadrado | I9: =RSQ(B7:B134,C7:C134) -> 0.05983738856 | T9: 3 | U9: -0.1929780765 | V9: -0.246793261
A10: 4 | B10: =Retornos_Mensais!E7-$J$3 -> -0.02433145338 | C10: =Retornos_Mensais!D7-$J$3 -> -0.1030534227 | E10: =$I$7+$I$8*C10 -> -0.06335409773 | F10: =B10-E10 -> 0.03902264435 | H10: ERRO-PADRÃO | I10: =STEYX(B7:B134,C7:C134) -> 0.144480052 | T10: 4 | U10: -0.1228627709 | V10: -0.1669029731
A11: 5 | B11: =Retornos_Mensais!E8-$J$3 -> 0.02824895159 | C11: =Retornos_Mensais!D8-$J$3 -> -0.000512704144 | E11: =$I$7+$I$8*C11 -> -0.006427668355 | F11: =B11-E11 -> 0.03467661994 | K11: Modo 3 - Ferramenta do Excel (Dados / Análise de Dados / Regressão) | T11: 5 | U11: 0.2314070139 | V11: 0.246793261
A12: 6 | B12: =Retornos_Mensais!E9-$J$3 -> -0.05314556982 | C12: =Retornos_Mensais!D9-$J$3 -> 0.008828215048 | E12: =$I$7+$I$8*C12 -> -0.001241970575 | F12: =B12-E12 -> -0.05190359925 | H12: Alpha | I12: =INDEX(LINEST(B7:B134,C7:C134,TRUE,TRUE),1,2) -> -0.006143035902 | T12: 6 | U12: -0.3170029803 | V12: -0.4120375636
A13: 7 | B13: =Retornos_Mensais!E10-$J$3 -> -0.05001423828 | C13: =Retornos_Mensais!D10-$J$3 -> -0.0263278648 | E13: =$I$7+$I$8*C13 -> -0.02075919383 | F13: =B13-E13 -> -0.02925504445 | H13: Alpha (Erro-Padrão) | I13: =INDEX(LINEST(B7:B134,C7:C134,TRUE,TRUE),2,2) -> 0.01277036374 | T13: 7 | U13: -0.2959050798 | V13: -0.3489917322
A14: 8 | B14: =Retornos_Mensais!E11-$J$3 -> 0.04093831236 | C14: =Retornos_Mensais!D11-$J$3 -> 0.0026975772 | E14: =$I$7+$I$8*C14 -> -0.004645450942 | F14: =B14-E14 -> 0.0455837633 | K14: RESUMO DOS RESULTADOS | T14: 8 | U14: 0.316903828 | V14: 0.4120375636
A15: 9 | B15: =Retornos_Mensais!E12-$J$3 -> 0.06992966424 | C15: =Retornos_Mensais!D12-$J$3 -> 0.07109483656 | E15: =$I$7+$I$8*C15 -> 0.0333259209 | F15: =B15-E15 -> 0.03660374334 | H15: Beta | I15: =INDEX(LINEST(B7:B134,C7:C134,TRUE,TRUE),1,1) -> 0.5551592593 | T15: 9 | U15: 0.5122381925 | V15: 0.6366290907
A16: 10 | B16: =Retornos_Mensais!E13-$J$3 -> 0.06291782609 | C16: =Retornos_Mensais!D13-$J$3 -> 0.06249291923 | E16: =$I$7+$I$8*C16 -> 0.02855048685 | F16: =B16-E16 -> 0.03436733924 | H16: Beta (Erro-Padrão) | I16: =INDEX(LINEST(B7:B134,C7:C134,TRUE,TRUE),2,1) -> 0.196041261 | K16: Estatística de regressão | T16: 10 | U16: 0.4649946919 | V16: 0.612871947
A17: 11 | B17: =Retornos_Mensais!E14-$J$3 -> -0.0500472198 | C17: =Retornos_Mensais!D14-$J$3 -> 0.05558175038 | E17: =$I$7+$I$8*C17 -> 0.02471368747 | F17: =B17-E17 -> -0.07476090727 | K17: R múltiplo | L17: 0.2446274796 | T17: 11 | U17: -0.2961272986 | V17: -0.369840986
A18: 12 | B18: =Retornos_Mensais!E15-$J$3 -> -0.08644634046 | C18: =Retornos_Mensais!D15-$J$3 -> 0.0004966313974 | E18: =$I$7+$I$8*C18 -> -0.005867326383 | F18: =B18-E18 -> -0.08057901408 | H18: Sp Risk from STEYX | K18: R-Quadrado | L18: 0.0598426038 | T18: 12 | U18: -0.5413728165 | V18: -0.7614409066
A19: 13 | B19: =Retornos_Mensais!E16-$J$3 -> 0.07488631908 | C19: =Retornos_Mensais!D16-$J$3 -> -0.02021678859 | E19: =$I$7+$I$8*C19 -> -0.01736657328 | F19: =B19-E19 -> 0.09225289236 | H19: Mensal | I19: =I10 -> 0.144480052 | K19: R-quadrado ajustado | L19: 0.05232134463 | T19: 13 | U19: 0.5456345318 | V19: 0.6852639311
A20: 14 | B20: =Retornos_Mensais!E17-$J$3 -> -0.01376538449 | C20: =Retornos_Mensais!D17-$J$3 -> 0.03938744456 | E20: =$I$7+$I$8*C20 -> 0.01572326864 | F20: =B20-E20 -> -0.02948865314 | H20: Anualizado | I20: =I10*SQRT(12) -> 0.5004935813 | K20: Erro padrão | L20: 0.1450562104 | T20: 14 | U20: -0.05167201169 | V20: -0.08806556972
A21: 15 | B21: =Retornos_Mensais!E18-$J$3 -> 0.007604378365 | C21: =Retornos_Mensais!D18-$J$3 -> 0.06325494027 | E21: =$I$7+$I$8*C21 -> 0.02897352988 | F21: =B21-E21 -> -0.02136915152 | H21: via função VBA | I21: =PortfolioSpecificRisk(B7:B134,C7:C134,12) -> 0.5004935813 | K21: Observações | L21: 127 | T21: 15 | U21: 0.09231054785 | V21: 0.1077046012
A22: 16 | B22: =Retornos_Mensais!E19-$J$3 -> 0.123910271 | C22: =Retornos_Mensais!D19-$J$3 -> 0.06218865382 | E22: =$I$7+$I$8*C22 -> 0.02838157109 | F22: =B22-E22 -> 0.09552869993 | T22: 16 | U22: 0.8759420848 | V22: 1.128143645
A23: 17 | B23: =Retornos_Mensais!E20-$J$3 -> 0.03396238439 | C23: =Retornos_Mensais!D20-$J$3 -> 0.03655901532 | E23: =$I$7+$I$8*C23 -> 0.01415303996 | F23: =B23-E23 -> 0.01980934443 | H23: Sp Risk from Residuals | K23: ANOVA | T23: 17 | U23: 0.2699022786 | V23: 0.2873045458
A24: 18 | B24: =Retornos_Mensais!E21-$J$3 -> -0.003437660773 | C24: =Retornos_Mensais!D21-$J$3 -> -0.007123617897 | E24: =$I$7+$I$8*C24 -> -0.01009777834 | F24: =B24-E24 -> 0.006660117565 | H24: Annualised | I24: =SQRT(SUMSQ(F7:F134)/(COUNT(F7:F134)-2))*SQRT(12) -> 0.5479905753 | L24: gl | M24: SQ | N24: MQ | O24: F | P24: F de significação | T24: 18 | U24: 0.01791285481 | V24: 0.009772585471
A25: 19 | B25: =Retornos_Mensais!E22-$J$3 -> 0.1242973022 | C25: =Retornos_Mensais!D22-$J$3 -> 0.005070363032 | E25: =$I$7+$I$8*C25 -> -0.003328176917 | F25: =B25-E25 -> 0.1276254792 | K25: Regressão | L25: 1 | M25: 0.1674143121 | N25: 0.1674143121 | O25: 7.956460806 | P25: 0.005574763976 | T25: 19 | U25: 0.8785497762 | V25: 1.16587567
A26: 20 | B26: =Retornos_Mensais!E23-$J$3 -> 0.1744678403 | C26: =Retornos_Mensais!D23-$J$3 -> 0.09807963653 | E26: =$I$7+$I$8*C26 -> 0.04830678247 | F26: =B26-E26 -> 0.1261610579 | K26: Resíduo | L26: 125 | M26: 2.630163023 | N26: 0.02104130419 | T26: 20 | U26: 1.216582656 | V26: 1.559371904
A27: 21 | B27: =Retornos_Mensais!E24-$J$3 -> 0.01847404051 | C27: =Retornos_Mensais!D24-$J$3 -> 0.07392922412 | E27: =$I$7+$I$8*C27 -> 0.0348994574 | F27: =B27-E27 -> -0.01642541689 | K27: Total | L27: 126 | M27: 2.797577335 | T27: 21 | U27: 0.1655468204 | V27: 0.1669029731
A28: 22 | B28: =Retornos_Mensais!E25-$J$3 -> 0.2127523438 | C28: =Retornos_Mensais!D25-$J$3 -> -0.03931142897 | E28: =$I$7+$I$8*C28 -> -0.02796713969 | F28: =B28-E28 -> 0.2407194835 | T28: 22 | U28: 1.474531274 | V28: 1.798329823
A29: 23 | B29: =Retornos_Mensais!E26-$J$3 -> -0.08872788832 | C29: =Retornos_Mensais!D26-$J$3 -> 0.01059654531 | E29: =$I$7+$I$8*C29 -> -0.0002602656551 | F29: =B29-E29 -> -0.08846762267 | L29: Coeficientes | M29: Erro padrão | N29: Stat t | O29: valor-P | P29: 95% inferiores | Q29: 95% superiores | R29: Inferior 95,0% | S29: Superior 95,0% | T29: 23 | U29: -0.556745149 | V29: -0.8147687735
A30: 24 | B30: =Retornos_Mensais!E27-$J$3 -> 0.01012161765 | C30: =Retornos_Mensais!D27-$J$3 -> -0.07456575363 | E30: =$I$7+$I$8*C30 -> -0.04753890446 | F30: =B30-E30 -> 0.05766052211 | K30: Interseção | L30: -0.006179942623 | M30: 0.01287167569 | N30: -0.4801195099 | O30: 0.6319815259 | P30: -0.03165458631 | Q30: 0.01929470106 | R30: -0.03165458631 | S30: 0.01929470106 | T30: 24 | U30: 0.1092708931 | V30: 0.1471153988
A31: 25 | B31: =Retornos_Mensais!E28-$J$3 -> -0.08903903387 | C31: =Retornos_Mensais!D28-$J$3 -> 0.06178469156 | E31: =$I$7+$I$8*C31 -> 0.0281573077 | F31: =B31-E31 -> -0.1171963416 | K31: -0.003273739782 | L31: 0.5551884634 | M31: 0.1968250947 | N31: 2.820719909 | O31: 0.005574763976 | P31: 0.165647173 | Q31: 0.9447297537 | R31: 0.165647173 | S31: 0.9447297537 | T31: 25 | U31: -0.5588415472 | V31: -0.8423177173
A32: 26 | B32: =Retornos_Mensais!E29-$J$3 -> -0.5754584285 | C32: =Retornos_Mensais!D29-$J$3 -> -0.04379126596 | E32: =$I$7+$I$8*C32 -> -0.03045416268 | F32: =B32-E32 -> -0.5450042658 | T32: 26 | U32: -3.83617831 | V32: -2.584692474
A33: 27 | B33: =Retornos_Mensais!E30-$J$3 -> 0.1228189872 | C33: =Retornos_Mensais!D30-$J$3 -> 0.103941766 | E33: =$I$7+$I$8*C33 -> 0.05156119794 | F33: =B33-E33 -> 0.07125778931 | T33: 27 | U33: 0.8685893673 | V33: 1.057138587
A34: 28 | B34: =Retornos_Mensais!E31-$J$3 -> -0.01996275251 | C34: =Retornos_Mensais!D31-$J$3 -> 0.06403011649 | E34: =$I$7+$I$8*C34 -> 0.02940387614 | F34: =B34-E34 -> -0.04936662865 | T34: 28 | U34: -0.09342787559 | V34: -0.1471153988
A35: 29 | B35: =Retornos_Mensais!E32-$J$3 -> -0.2538039634 | C35: =Retornos_Mensais!D32-$J$3 -> -0.1134780836 | E35: =$I$7+$I$8*C35 -> -0.06914144474 | F35: =B35-E35 -> -0.1846625187 | T35: 29 | U35: -1.668974422 | V35: -1.906925663
A36: 30 | B36: =Retornos_Mensais!E33-$J$3 -> -0.0328370937 | C36: =Retornos_Mensais!D33-$J$3 -> -0.09187755178 | E36: =$I$7+$I$8*C36 -> -0.0571497095 | F36: =B36-E36 -> 0.0243126158 | T36: 30 | U36: -0.180171028 | V36: -0.2266926175
A37: 31 | B37: =Retornos_Mensais!E34-$J$3 -> -0.01364141041 | C37: =Retornos_Mensais!D34-$J$3 -> -0.06971306639 | E37: =$I$7+$I$8*C37 -> -0.0448448902 | F37: =B37-E37 -> 0.0312034798 | T37: 31 | U37: -0.05083671432 | V37: -0.06846044899
A38: 32 | B38: =Retornos_Mensais!E35-$J$3 -> -0.3924114751 | C38: =Retornos_Mensais!D35-$J$3 -> -0.1200941462 | E38: =$I$7+$I$8*C38 -> -0.07281441317 | F38: =B38-E38 -> -0.319597062 | T38: 32 | U38: -2.602867065 | V38: -2.23616247
A39: 33 | B39: =Retornos_Mensais!E36-$J$3 -> -0.1894475164 | C39: =Retornos_Mensais!D36-$J$3 -> -0.2882345027 | E39: =$I$7+$I$8*C39 -> -0.1661590889 | F39: =B39-E39 -> -0.02328842743 | T39: 33 | U39: -1.235361469 | V39: -1.336804225
A40: 34 | B40: =Retornos_Mensais!E37-$J$3 -> 0.1429660319 | C40: =Retornos_Mensais!D37-$J$3 -> -0.0211746416 | E40: =$I$7+$I$8*C40 -> -0.01789833425 | F40: =B40-E40 -> 0.1608643662 | T40: 34 | U40: 1.004333647 | V40: 1.29048853
A41: 35 | B41: =Retornos_Mensais!E38-$J$3 -> 0.0963592371 | C41: =Retornos_Mensais!D38-$J$3 -> 0.02246069361 | E41: =$I$7+$I$8*C41 -> 0.006326226126 | F41: =B41-E41 -> 0.09003301097 | T41: 35 | U41: 0.6903121175 | V41: 0.9291207526
A42: 36 | B42: =Retornos_Mensais!E39-$J$3 -> 0.07064605906 | C42: =Retornos_Mensais!D39-$J$3 -> 0.04230284585 | E42: =$I$7+$I$8*C42 -> 0.01734178067 | F42: =B42-E42 -> 0.0533042784 | T42: 36 | U42: 0.5170650294 | V42: 0.6607511271
A43: 37 | B43: =Retornos_Mensais!E40-$J$3 -> 0.07549787105 | C43: =Retornos_Mensais!D40-$J$3 -> -0.03213331325 | E43: =$I$7+$I$8*C43 -> -0.02398214228 | F43: =B43-E43 -> 0.09948001333 | T43: 37 | U43: 0.5497549714 | V43: 0.7101956049
A44: 38 | B44: =Retornos_Mensais!E41-$J$3 -> 0.03716378287 | C44: =Retornos_Mensais!D41-$J$3 -> 0.06610142774 | E44: =$I$7+$I$8*C44 -> 0.03055378376 | F44: =B44-E44 -> 0.006609999115 | T44: 38 | U44: 0.2914722675 | V44: 0.3489917322
A45: 39 | B45: =Retornos_Mensais!E42-$J$3 -> 0.1550561892 | C45: =Retornos_Mensais!D42-$J$3 -> 0.141259559 | E45: =$I$7+$I$8*C45 -> 0.07227851622 | F45: =B45-E45 -> 0.082777673 | T45: 39 | U45: 1.085793221 | V45: 1.439187289
A46: 40 | B46: =Retornos_Mensais!E43-$J$3 -> -0.07706095352 | C46: =Retornos_Mensais!D43-$J$3 -> 0.1144482052 | E46: =$I$7+$I$8*C46 -> 0.05739394493 | F46: =B46-E46 -> -0.1344548985 | T46: 40 | U46: -0.4781371108 | V46: -0.612871947
A47: 41 | B47: =Retornos_Mensais!E44-$J$3 -> -0.04244456643 | C47: =Retornos_Mensais!D44-$J$3 -> -0.03639257646 | E47: =$I$7+$I$8*C47 -> -0.02634671169 | F47: =B47-E47 -> -0.01609785473 | T47: 41 | U47: -0.2449030759 | V47: -0.2669941254
A48: 42 | B48: =Retornos_Mensais!E45-$J$3 -> -0.03008922664 | C48: =Retornos_Mensais!D45-$J$3 -> 0.05889385869 | E48: =$I$7+$I$8*C48 -> 0.02655243506 | F48: =B48-E48 -> -0.05664166171 | T48: 42 | U48: -0.1616567874 | V48: -0.2066831598
A49: 43 | B49: =Retornos_Mensais!E46-$J$3 -> 0.08149246838 | C49: =Retornos_Mensais!D46-$J$3 -> 0.0277026257 | E49: =$I$7+$I$8*C49 -> 0.009236333264 | F49: =B49-E49 -> 0.07225613511 | T49: 43 | U49: 0.5901446319 | V49: 0.7614409066
A50: 44 | B50: =Retornos_Mensais!E47-$J$3 -> -0.01187858698 | C50: =Retornos_Mensais!D47-$J$3 -> 0.0820101462 | E50: =$I$7+$I$8*C50 -> 0.03938565612 | F50: =B50-E50 -> -0.05126424309 | T50: 44 | U50: -0.03895937946 | V50: -0.02932149074
A51: 45 | B51: =Retornos_Mensais!E48-$J$3 -> 0.08211080022 | C51: =Retornos_Mensais!D48-$J$3 -> -0.002818691994 | E51: =$I$7+$I$8*C51 -> -0.007707858862 | F51: =B51-E51 -> 0.08981865908 | T51: 45 | U51: 0.5943107521 | V51: 0.7878247528
A52: 46 | B52: =Retornos_Mensais!E49-$J$3 -> -0.06282208767 | C52: =Retornos_Mensais!D49-$J$3 -> 0.08229051778 | E52: =$I$7+$I$8*C52 -> 0.03954130699 | F52: =B52-E52 -> -0.1023633947 | T52: 46 | U52: -0.382200232 | V52: -0.4767666938
A53: 47 | B53: =Retornos_Mensais!E50-$J$3 -> -0.0870529672 | C53: =Retornos_Mensais!D50-$J$3 -> 0.01949473227 | E53: =$I$7+$I$8*C53 -> 0.004679645224 | F53: =B53-E53 -> -0.09173261243 | T53: 47 | U53: -0.5454600715 | V53: -0.7878247528
A54: 48 | B54: =Retornos_Mensais!E51-$J$3 -> 0.009206921441 | C54: =Retornos_Mensais!D51-$J$3 -> -0.05083849306 | E54: =$I$7+$I$8*C54 -> -0.03436649605 | F54: =B54-E54 -> 0.0435734175 | T54: 48 | U54: 0.1031079655 | V54: 0.1273852656
A55: 49 | B55: =Retornos_Mensais!E52-$J$3 -> 0.02223784788 | C55: =Retornos_Mensais!D52-$J$3 -> 0.01342048061 | E55: =$I$7+$I$8*C55 -> 0.001307468172 | F55: =B55-E55 -> 0.0209303797 | T55: 49 | U55: 0.1909061387 | V55: 0.2066831598
A56: 50 | B56: =Retornos_Mensais!E53-$J$3 -> -0.07505928008 | C56: =Retornos_Mensais!D53-$J$3 -> 0.05327465757 | E56: =$I$7+$I$8*C56 -> 0.02343288353 | F56: =B56-E56 -> -0.09849216361 | T56: 50 | U56: -0.4646504817 | V56: -0.5663585038
A57: 51 | B57: =Retornos_Mensais!E54-$J$3 -> -0.08412868522 | C57: =Retornos_Mensais!D54-$J$3 -> -0.04449725297 | E57: =$I$7+$I$8*C57 -> -0.0308460979 | F57: =B57-E57 -> -0.05328258731 | T57: 51 | U57: -0.525757204 | V57: -0.7101956049
A58: 52 | B58: =Retornos_Mensais!E55-$J$3 -> -0.09799723726 | C58: =Retornos_Mensais!D55-$J$3 -> -0.07196520337 | E58: =$I$7+$I$8*C58 -> -0.0460951849 | F58: =B58-E58 -> -0.05190205236 | T58: 52 | U58: -0.619199028 | V58: -0.9596488614
A59: 53 | B59: =Retornos_Mensais!E56-$J$3 -> 0.02972417793 | C59: =Retornos_Mensais!D56-$J$3 -> -0.03733008671 | E59: =$I$7+$I$8*C59 -> -0.02686717919 | F59: =B59-E59 -> 0.05659135712 | T59: 53 | U59: 0.2413466125 | V59: 0.2669941254
A60: 54 | B60: =Retornos_Mensais!E57-$J$3 -> -0.08282239557 | C60: =Retornos_Mensais!D57-$J$3 -> 0.09925192256 | E60: =$I$7+$I$8*C60 -> 0.04895758791 | F60: =B60-E60 -> -0.1317799835 | T60: 54 | U60: -0.5169558463 | V60: -0.6607511271
A61: 55 | B61: =Retornos_Mensais!E58-$J$3 -> 0.02373240222 | C61: =Retornos_Mensais!D58-$J$3 -> -0.03900798054 | E61: =$I$7+$I$8*C61 -> -0.02779867749 | F61: =B61-E61 -> 0.0515310797 | T61: 55 | U61: 0.2009759631 | V61: 0.2266926175
A62: 56 | B62: =Retornos_Mensais!E59-$J$3 -> -0.06605941209 | C62: =Retornos_Mensais!D59-$J$3 -> 0.06042975633 | E62: =$I$7+$I$8*C62 -> 0.02740510286 | F62: =B62-E62 -> -0.09346451495 | T62: 56 | U62: -0.4040122782 | V62: -0.4987809304
A63: 57 | B63: =Retornos_Mensais!E60-$J$3 -> -0.04548315283 | C63: =Retornos_Mensais!D60-$J$3 -> 0.01447081408 | E63: =$I$7+$I$8*C63 -> 0.001890570525 | F63: =B63-E63 -> -0.04737372336 | T63: 57 | U63: -0.2653760896 | V63: -0.2873045458
A64: 58 | B64: =Retornos_Mensais!E61-$J$3 -> 0.1066434228 | C64: =Retornos_Mensais!D61-$J$3 -> -0.04617731198 | E64: =$I$7+$I$8*C64 -> -0.03177879822 | F64: =B64-E64 -> 0.138422221 | T64: 58 | U64: 0.7596036387 | V64: 0.9910986198
A65: 59 | B65: =Retornos_Mensais!E62-$J$3 -> -0.01977576442 | C65: =Retornos_Mensais!D62-$J$3 -> 0.02008328145 | E65: =$I$7+$I$8*C65 -> 0.005006383751 | F65: =B65-E65 -> -0.02478214817 | T65: 59 | U65: -0.09216801022 | V65: -0.1273852656
A66: 60 | B66: =Retornos_Mensais!E63-$J$3 -> 0.07817588761 | C66: =Retornos_Mensais!D63-$J$3 -> -0.04346166175 | E66: =$I$7+$I$8*C134 -> 0.002421599436 | F66: =B134-E66 -> 0.731203902 | T66: 60 | U66: 0.567798582 | V66: 0.7355767699
A67: 61 | B67: =Retornos_Mensais!E64-$J$3 -> -0.002660430962 | C67: =Retornos_Mensais!D64-$J$3 -> 0.008789889103 | E67: =$I$7+$I$8*C67 -> -0.001263247579 | F67: =B67-E67 -> -0.001397183383 | T67: 61 | U67: 0.02314957822 | V67: 0.04888160901
A68: 62 | B68: =Retornos_Mensais!E65-$J$3 -> -0.1247038225 | C68: =Retornos_Mensais!D65-$J$3 -> 0.01443651203 | E68: 0.001871527425 | F68: -0.1265753499 | T68: 62 | U68: -0.7991393729 | V68: -1.023560553
A69: 63 | B69: =Retornos_Mensais!E66-$J$3 -> -0.07724858982 | C69: =Retornos_Mensais!D66-$J$3 -> -0.03970888634 | E69: -0.02818779183 | F69: -0.049060798 | T69: 63 | U69: -0.4794013436 | V69: -0.6366290907
A70: 64 | B70: =Retornos_Mensais!E67-$J$3 -> -0.02512841518 | C70: =Retornos_Mensais!D67-$J$3 -> -0.02641764523 | E70: -0.02080903626 | F70: -0.00431937892 | T70: 64 | U70: -0.1282324421 | V70: -0.1867561211
A71: 65 | B71: =Retornos_Mensais!E68-$J$3 -> -0.0128431908 | C71: =Retornos_Mensais!D68-$J$3 -> -0.03816832429 | E71: -0.02733253455 | F71: 0.01448934375 | T71: 65 | U71: -0.04545856844 | V71: -0.04888160901
A72: 66 | B72: =Retornos_Mensais!E69-$J$3 -> -0.1280523413 | C72: =Retornos_Mensais!D69-$J$3 -> -0.06237018078 | E72: -0.04076841927 | F72: -0.08728392203 | T72: 66 | U72: -0.821700611 | V72: -1.091952907
A73: 67 | B73: =Retornos_Mensais!E70-$J$3 -> -0.09684251732 | C73: =Retornos_Mensais!D70-$J$3 -> -0.04365453601 | E73: -0.03037825578 | F73: -0.06646426154 | T73: 67 | U73: -0.6114188981 | V73: -0.9291207526
A74: 68 | B74: =Retornos_Mensais!E71-$J$3 -> 0.09594354289 | C74: =Retornos_Mensais!D71-$J$3 -> -0.07997072162 | E74: -0.05053952248 | F74: 0.1464830654 | T74: 68 | U74: 0.6875113041 | V74: 0.8994349077
A75: 69 | B75: =Retornos_Mensais!E72-$J$3 -> 0.04080119044 | C75: =Retornos_Mensais!D72-$J$3 -> 0.1055247854 | E75: 0.05244002582 | F75: -0.01163883539 | T75: 69 | U75: 0.3159799447 | V75: 0.3908522745
A76: 70 | B76: =Retornos_Mensais!E73-$J$3 -> -0.05082089571 | C76: =Retornos_Mensais!D73-$J$3 -> -0.02867154457 | E76: -0.02206030935 | F76: -0.02876058637 | T76: 70 | U76: -0.301340077 | V76: -0.3908522745
A77: 71 | B77: =Retornos_Mensais!E74-$J$3 -> 0.153730009 | C77: =Retornos_Mensais!D74-$J$3 -> -0.005403478594 | E77: -0.009142827076 | F77: 0.1628728361 | T77: 71 | U77: 1.076857847 | V77: 1.386179801
A78: 72 | B78: =Retornos_Mensais!E75-$J$3 -> -0.04928071262 | C78: =Retornos_Mensais!D75-$J$3 -> 0.1022770527 | E78: 0.05063701693 | F78: -0.09991772955 | T78: 72 | U78: -0.2909628209 | V78: -0.3077341915
A79: 73 | B79: =Retornos_Mensais!E76-$J$3 -> -0.05928838134 | C79: =Retornos_Mensais!D76-$J$3 -> 0.03925152177 | E79: 0.01564780985 | F79: -0.07493619119 | T79: 73 | U79: -0.3583912601 | V79: -0.4334094328
A80: 74 | B80: =Retornos_Mensais!E77-$J$3 -> -0.08513565952 | C80: =Retornos_Mensais!D77-$J$3 -> -0.02324018041 | E80: -0.01904503724 | F80: -0.06609062227 | T80: 74 | U80: -0.5325418716 | V80: -0.7355767699
A81: 75 | B81: =Retornos_Mensais!E78-$J$3 -> -0.1262062327 | C81: =Retornos_Mensais!D78-$J$3 -> -0.04588255497 | E81: -0.03161516114 | F81: -0.09459107156 | T81: 75 | U81: -0.8092621275 | V81: -1.057138587
A82: 76 | B82: =Retornos_Mensais!E79-$J$3 -> -0.04979375542 | C82: =Retornos_Mensais!D79-$J$3 -> -0.1294834779 | E82: -0.07802698758 | F82: 0.02823323216 | T82: 76 | U82: -0.2944195375 | V82: -0.328293103
A83: 77 | B83: =Retornos_Mensais!E80-$J$3 -> 0.0557934919 | C83: =Retornos_Mensais!D80-$J$3 -> -0.005754332721 | E83: -0.009337606993 | F83: 0.0651310989 | T83: 77 | U83: 0.4169932294 | V83: 0.5663585038
A84: 78 | B84: =Retornos_Mensais!E81-$J$3 -> 0.05720417918 | C84: =Retornos_Mensais!D81-$J$3 -> 0.02827198972 | E84: 0.009552420972 | F84: 0.04765175821 | T84: 78 | U84: 0.4264979846 | V84: 0.5894557978
A85: 79 | B85: =Retornos_Mensais!E82-$J$3 -> 0.08647254807 | C85: =Retornos_Mensais!D82-$J$3 -> 0.0137647961 | E85: 0.001498618104 | F85: 0.08497392997 | T85: 79 | U85: 0.6236988003 | V85: 0.8147687735
A86: 80 | B86: =Retornos_Mensais!E83-$J$3 -> -0.08367416522 | C86: =Retornos_Mensais!D83-$J$3 -> 0.03312144346 | E86: 0.01224464012 | F86: -0.09591880534 | T86: 80 | U86: -0.5226947951 | V86: -0.6852639311
A87: 81 | B87: =Retornos_Mensais!E84-$J$3 -> -0.1216383399 | C87: =Retornos_Mensais!D84-$J$3 -> -0.03954625482 | E87: -0.02809750543 | F87: -0.09354083443 | T87: 81 | U87: -0.7784851411 | V87: -0.9910986198
A88: 82 | B88: =Retornos_Mensais!E85-$J$3 -> 0.0200132116 | C88: =Retornos_Mensais!D85-$J$3 -> 0.003832791614 | E88: -0.004015226149 | F88: 0.02402843775 | T88: 82 | U88: 0.175917258 | V88: 0.1867561211
A89: 83 | B89: =Retornos_Mensais!E86-$J$3 -> -0.07318043752 | C89: =Retornos_Mensais!D86-$J$3 -> 0.05546285874 | E89: 0.02464768367 | F89: -0.0978281212 | T89: 83 | U89: -0.4519914475 | V89: -0.543559495
A90: 84 | B90: =Retornos_Mensais!E87-$J$3 -> -0.2328835721 | C90: =Retornos_Mensais!D87-$J$3 -> -0.02300713467 | E90: -0.01891565974 | F90: -0.2139679124 | T90: 84 | U90: -1.528019583 | V90: -1.559371904
A91: 85 | B91: =Retornos_Mensais!E88-$J$3 -> 0.1505811258 | C91: =Retornos_Mensais!D88-$J$3 -> -0.04316467966 | E91: -0.03010630749 | F91: 0.1806874333 | T91: 85 | U91: 1.05564169 | V91: 1.336804225
A92: 86 | B92: =Retornos_Mensais!E89-$J$3 -> 0.1238019483 | C92: =Retornos_Mensais!D89-$J$3 -> -0.02211834187 | E92: -0.01842223819 | F92: 0.1422241865 | T92: 86 | U92: 0.8752122414 | V92: 1.091952907
A93: 87 | B93: =Retornos_Mensais!E90-$J$3 -> -0.01480426585 | C93: =Retornos_Mensais!D90-$J$3 -> -0.01114821706 | E93: -0.01233207183 | F93: -0.002472194029 | T93: 87 | U93: -0.05867165873 | V93: -0.1077046012
A94: 88 | B94: =Retornos_Mensais!E91-$J$3 -> -0.251505343 | C94: =Retornos_Mensais!D91-$J$3 -> -0.04722319767 | E94: -0.03235943134 | F94: -0.2191459116 | T94: 88 | U94: -1.65348706 | V94: -1.798329823
A95: 89 | B95: =Retornos_Mensais!E92-$J$3 -> 0.03516704353 | C95: =Retornos_Mensais!D92-$J$3 -> -0.123243499 | E95: -0.07456280554 | F95: 0.1097298491 | T95: 89 | U95: 0.2780188827 | V95: 0.3077341915
A96: 90 | B96: =Retornos_Mensais!E93-$J$3 -> 0.03936714572 | C96: =Retornos_Mensais!D93-$J$3 -> 0.01296638891 | E96: 0.001055374959 | F96: 0.03831177076 | T96: 90 | U96: 0.3063178146 | V96: 0.369840986
A97: 91 | B97: =Retornos_Mensais!E94-$J$3 -> 0.05187504101 | C97: =Retornos_Mensais!D94-$J$3 -> 0.03284508627 | E97: 0.01209121786 | F97: 0.03978382314 | T97: 91 | U97: 0.3905919729 | V97: 0.4987809304
A98: 92 | B98: =Retornos_Mensais!E95-$J$3 -> 0.1383322765 | C98: =Retornos_Mensais!D95-$J$3 -> 0.04226595227 | E98: 0.01732129885 | F98: 0.1210109776 | T98: 92 | U98: 0.9731128991 | V98: 1.246786932
A99: 93 | B99: =Retornos_Mensais!E96-$J$3 -> -0.06774402715 | C99: =Retornos_Mensais!D96-$J$3 -> 0.03271716092 | E99: 0.01202019892 | F99: -0.07976422607 | T99: 93 | U99: -0.4153626704 | V99: -0.5210396059
A100: 94 | B100: =Retornos_Mensais!E97-$J$3 -> -0.1393035722 | C100: =Retornos_Mensais!D97-$J$3 -> -0.0365170715 | E100: -0.02641582627 | F100: -0.1128877459 | T100: 94 | U100: -0.8975077705 | V100: -1.128143645
A101: 95 | B101: =Retornos_Mensais!E98-$J$3 -> -0.1527449539 | C101: =Retornos_Mensais!D98-$J$3 -> -0.02202627268 | E101: -0.01837112513 | F101: -0.1343738288 | T101: 95 | U101: -0.9880714587 | V101: -1.16587567
A102: 96 | B102: =Retornos_Mensais!E99-$J$3 -> -0.06158622184 | C102: =Retornos_Mensais!D99-$J$3 -> -0.08133970704 | E102: -0.05129952741 | F102: -0.01028669443 | T102: 96 | U102: -0.3738733672 | V102: -0.4549811403
A103: 97 | B103: =Retornos_Mensais!E100-$J$3 -> 0.1379264021 | C103: =Retornos_Mensais!D100-$J$3 -> -0.01477988891 | E103: -0.01434822808 | F103: 0.1522746302 | T103: 97 | U103: 0.9703782486 | V103: 1.20534492
A104: 98 | B104: =Retornos_Mensais!E101-$J$3 -> 0.04373230259 | C104: =Retornos_Mensais!D101-$J$3 -> 0.06486940569 | E104: 0.02986981531 | F104: 0.01386248728 | T104: 98 | U104: 0.3357288317 | V104: 0.4334094328
A105: 99 | B105: =Retornos_Mensais!E102-$J$3 -> -0.007748020177 | C105: =Retornos_Mensais!D102-$J$3 -> 0.02048230182 | E105: 0.005227903607 | F105: -0.01297592378 | T105: 99 | U105: -0.01112895458 | V105: -0.009772585471
A106: 100 | B106: =Retornos_Mensais!E103-$J$3 -> 0.03629186042 | C106: =Retornos_Mensais!D103-$J$3 -> -0.0108175704 | E106: -0.01214851027 | F106: 0.0484403707 | T106: 100 | U106: 0.2855975357 | V106: 0.328293103
A107: 101 | B107: =Retornos_Mensais!E104-$J$3 -> 0.09906497345 | C107: =Retornos_Mensais!D104-$J$3 -> 0.033682011 | E107: 0.01255584437 | F107: 0.08650912907 | T107: 101 | U107: 0.708542495 | V107: 0.9596488614
A108: 102 | B108: =Retornos_Mensais!E105-$J$3 -> 0.2015824337 | C108: =Retornos_Mensais!D105-$J$3 -> 0.04556299625 | E108: 0.01915168335 | F108: 0.1824307503 | T108: 102 | U108: 1.399272028 | V108: 1.707553094
A109: 103 | B109: =Retornos_Mensais!E106-$J$3 -> -0.2501338177 | C109: =Retornos_Mensais!D106-$J$3 -> 0.09001687779 | E109: 0.04383066729 | F109: -0.293964485 | T109: 103 | U109: -1.644246166 | V109: -1.707553094
A110: 104 | B110: =Retornos_Mensais!E107-$J$3 -> -0.1666455478 | C110: =Retornos_Mensais!D107-$J$3 -> -0.1277279143 | E110: -0.07705237017 | F110: -0.08959317763 | T110: 104 | U110: -1.08172917 | V110: -1.20534492
A111: 105 | B111: =Retornos_Mensais!E108-$J$3 -> -0.187918813 | C111: =Retornos_Mensais!D108-$J$3 -> 0.006161246756 | E111: -0.002722562717 | F111: -0.1851962502 | T111: 105 | U111: -1.22506156 | V111: -1.29048853
A112: 106 | B112: =Retornos_Mensais!E109-$J$3 -> -0.2423481132 | C112: =Retornos_Mensais!D109-$J$3 -> -0.002633259583 | E112: -0.007604914342 | F112: -0.2347431988 | T112: 106 | U112: -1.591788603 | V112: -1.628996121
A113: 107 | B113: =Retornos_Mensais!E110-$J$3 -> -0.1795655455 | C113: =Retornos_Mensais!D110-$J$3 -> -0.09231610163 | E113: -0.0573931745 | F113: -0.122172371 | T113: 107 | U113: -1.168779942 | V113: -1.246786932
A114: 108 | B114: =Retornos_Mensais!E111-$J$3 -> 0.1614814933 | C114: =Retornos_Mensais!D111-$J$3 -> -0.06724849881 | E114: -0.04347666269 | F114: 0.204958156 | T114: 108 | U114: 1.129084845 | V114: 1.496578669
A115: 109 | B115: =Retornos_Mensais!E112-$J$3 -> 0.007219535934 | C115: =Retornos_Mensais!D112-$J$3 -> 0.09173018446 | E115: 0.04478182536 | F115: -0.03756228942 | T115: 109 | U115: 0.08971760385 | V115: 0.08806556972
A116: 110 | B116: =Retornos_Mensais!E113-$J$3 -> 0.3938055749 | C116: =Retornos_Mensais!D113-$J$3 -> -0.01170340822 | E116: -0.01264029134 | F116: 0.4064458663 | T116: 110 | U116: 2.694409464 | V116: 2.23616247
A117: 111 | B117: =Retornos_Mensais!E114-$J$3 -> -0.07603309406 | C117: =Retornos_Mensais!D114-$J$3 -> 0.09139640587 | E117: 0.04459652508 | F117: -0.1206296191 | T117: 111 | U117: -0.4712117258 | V117: -0.5894557978
A118: 112 | B118: =Retornos_Mensais!E115-$J$3 -> 0.0539266019 | C118: =Retornos_Mensais!D115-$J$3 -> -0.06695304998 | E118: -0.04331264153 | F118: 0.09723924343 | T118: 112 | U118: 0.4044147276 | V118: 0.5210396059
A119: 113 | B119: =Retornos_Mensais!E116-$J$3 -> -0.1951921618 | C119: =Retornos_Mensais!D116-$J$3 -> 0.002791981143 | E119: -0.004593041719 | F119: -0.19059912 | T119: 113 | U119: -1.274067035 | V119: -1.386179801
A120: 114 | B120: =Retornos_Mensais!E117-$J$3 -> -0.08981419611 | C120: =Retornos_Mensais!D117-$J$3 -> -0.04591772431 | E120: -0.03163468572 | F120: -0.05817951039 | T120: 114 | U120: -0.56406434 | V120: -0.870521281
A121: 115 | B121: =Retornos_Mensais!E118-$J$3 -> -0.2212517478 | C121: =Retornos_Mensais!D118-$J$3 -> -0.09029047857 | E121: -0.05626863111 | F121: -0.1649831167 | T121: 115 | U121: -1.449648108 | V121: -1.496578669
A122: 116 | B122: =Retornos_Mensais!E119-$J$3 -> 0.09054501544 | C122: =Retornos_Mensais!D119-$J$3 -> -0.03745932311 | E122: -0.02693892597 | F122: 0.1174839414 | T122: 116 | U122: 0.6511377699 | V122: 0.870521281
A123: 117 | B123: =Retornos_Mensais!E120-$J$3 -> -8.054920304e-05 | C123: =Retornos_Mensais!D120-$J$3 -> 0.01454302572 | E123: 0.001930659485 | F123: -0.002011208689 | T123: 117 | U123: 0.04053198819 | V123: 0.06846044899
A124: 118 | B124: =Retornos_Mensais!E121-$J$3 -> -0.09677896077 | C124: =Retornos_Mensais!D121-$J$3 -> -0.01973764022 | E124: -0.01710056963 | F124: -0.07967839114 | T124: 118 | U124: -0.6109906746 | V124: -0.8994349077
A125: 119 | B125: =Retornos_Mensais!E122-$J$3 -> -0.2156816592 | C125: =Retornos_Mensais!D122-$J$3 -> -0.04329264375 | E125: -0.03017734794 | F125: -0.1855043113 | T125: 119 | U125: -1.41211865 | V125: -1.439187289
A126: 120 | B126: =Retornos_Mensais!E123-$J$3 -> 0.05556676024 | C126: =Retornos_Mensais!D123-$J$3 -> -0.07360215422 | E126: -0.04700395332 | F126: 0.1025707136 | T126: 120 | U126: 0.4154655847 | V126: 0.543559495
A127: 121 | B127: =Retornos_Mensais!E124-$J$3 -> 0.3657061393 | C127: =Retornos_Mensais!D124-$J$3 -> 0.05414587727 | E127: 0.02391654922 | F127: 0.3417895901 | T127: 121 | U127: 2.505084544 | V127: 2.044180969
A128: 122 | B128: =Retornos_Mensais!E125-$J$3 -> 0.2185519162 | C128: =Retornos_Mensais!D125-$J$3 -> 0.1534507552 | E128: 0.07904657172 | F128: 0.1395053445 | T128: 122 | U128: 1.51360692 | V128: 1.906925663
A129: 123 | B129: =Retornos_Mensais!E126-$J$3 -> -0.268354577 | C129: =Retornos_Mensais!D126-$J$3 -> 0.07093839807 | E129: 0.03323907263 | F129: -0.3015936496 | T129: 123 | U129: -1.767011756 | V129: -2.044180969
A130: 124 | B130: =Retornos_Mensais!E127-$J$3 -> 0.1195174718 | C130: =Retornos_Mensais!D127-$J$3 -> -0.1096219669 | E130: -0.06700068583 | F130: 0.1865181577 | T130: 124 | U130: 0.8463448228 | V130: 1.023560553
A131: 125 | B131: =Retornos_Mensais!E128-$J$3 -> 0.1932813978 | C131: =Retornos_Mensais!D128-$J$3 -> 0.05784589071 | E131: =$I$7+$I$8*C131 -> 0.02597064594 | F131: =B131-E131 -> 0.1673107519 | T131: 125 | U131: 1.34334233 | V131: 1.628996121
A132: 126 | B132: =Retornos_Mensais!E129-$J$3 -> 0.04751978663 | C132: =Retornos_Mensais!D129-$J$3 -> 0.1030605481 | E132: 0.05107198165 | F132: -0.003552195022 | T132: 126 | U132: 0.3612476757 | V132: 0.4549811403
A133: 127 | B133: =Retornos_Mensais!E130-$J$3 -> 0.0495787184 | C133: =Retornos_Mensais!D130-$J$3 -> 0.007020685774 | E133: -0.002245437188 | F133: 0.05182415558 | T133: 127 | U133: 0.3751200929 | V133: 0.4767666938
A134: 128 | B134: =Retornos_Mensais!E131-$J$3 -> 0.7336255014 | C134: =Retornos_Mensais!D131-$J$3 -> 0.01542734845 | E134: 0.002421599436 | F134: 0.731203902 | T134: 128 | U134: 4.984006364 | V134: 2.584692474
T135: 129
T136: 130
T137: 131
T138: 132
T139: 133
T140: 134

Sheet Custo_capital
B2: =Retornos_Mensais!B3 -> ^BVSP | C2: =Retornos_Mensais!C3 -> PETR3.SA
A3: Beta | B3: =_xlfn.COVARIANCE.P(Retornos_Mensais!$D$4:$D$2388,Retornos_Mensais!D4:D2388)/_xlfn.VAR.P(Retornos_Mensais!$D$4:$D$2388) -> 1 | C3: =_xlfn.COVARIANCE.S(dvec_bovespa,dvec_acao)/_xlfn.VAR.S(dvec_bovespa) -> 0.5551592593 | D3: Desde IPO
A4: Beta | B4: =_xlfn.COVARIANCE.S(OFFSET(Retornos_Mensais!D4,0,0,D4,1),OFFSET(Retornos_Mensais!D4,0,0,D4,1))/_xlfn.VAR.S(OFFSET(Retornos_Mensais!D4,0,0,D4,1)) -> 1 | C4: =_xlfn.COVARIANCE.S(OFFSET(Retornos_Mensais!D4,0,0,D4,1),OFFSET(Retornos_Mensais!E4,0,0,D4,1))/_xlfn.VAR.S(OFFSET(Retornos_Mensais!D4,0,0,D4,1)) -> 0.7533082893 | D4: 48 | E4: -> digite ao lado o periodo para o cálculo do Beta (em meses)

Sheet Temp
